fUST/lending_fUST_20250208
["ID","MTS","AMOUNT","RATE_DAILY","PERIOD"]
[352103160,1738948257171,-2773.18,0.00010958,2]
[352103161,1738948257182,-500.0,0.00011095,2]
[352103162,1738948257191,-458.05520029,0.00011369,2]
[352103163,1738948257202,-283.521823,0.00011369,2]
[352103164,1738948257211,-500.0,0.00011369,2]
[352103165,1738948257220,-338.726993,0.00011369,2]
[352103166,1738948257230,-500.0,0.00011369,2]
[352103167,1738948257239,-1194.98,0.00011369,2]
[352103168,1738948257249,-500.0,0.00011369,2]
[352103169,1738948257260,-338.726993,0.00011369,2]
[352103170,1738948257270,-439.104714,0.00011369,2]
[352103171,1738948257280,-439.104714,0.00011369,2]
[352103172,1738948257291,-500.0,0.00011369,2]
[352103173,1738948257301,-151.0,0.00011369,2]
[352103174,1738948257310,-589.97,0.00011369,2]
[352103175,1738948257320,-1990.69,0.00011369,2]
[352103176,1738948257330,-500.0,0.00011369,2]
[352103177,1738948257339,-548.96,0.00011369,2]
[352103178,1738948257349,-1039.93,0.00011369,2]
[352103179,1738948257359,-500.0,0.00011369,2]
[352103180,1738948257368,-500.0,0.00011369,2]
[352103181,1738948257377,-534.5336951,0.00011369,2]
[352103182,1738948257386,-500.0,0.00011369,2]
[352103183,1738948257395,-152.84802516,0.00011369,2]
[352103184,1738948257404,-2192.97,0.00011369,2]
[352103185,1738948257414,-500.0,0.00011369,2]
[352103186,1738948257423,-500.0,0.00011369,2]
[352103187,1738948257432,-500.0,0.00011369,2]
[352103188,1738948257442,-500.0,0.00011369,2]
[352103189,1738948257451,-10463.31,0.00011369,2]
[352103190,1738948257462,-500.0,0.00011369,2]
[352103191,1738948257471,-5492.69,0.00011369,2]
[352103192,1738948257480,-500.0,0.00011369,2]
[352103193,1738948257490,-500.0,0.00011369,2]
[352103194,1738948257499,-500.0,0.00011369,2]
[352103195,1738948257509,-500.0,0.00011369,2]
[352103196,1738948257518,-2508.33,0.00011369,2]
[352103197,1738948257527,-500.0,0.00011369,2]
[352103198,1738948257537,-500.0,0.00011369,2]
[352103199,1738948257546,-629.69853506,0.00011369,2]
[352103200,1738948257555,-2101.3,0.00011369,2]
[352103201,1738948257564,-502.40915046,0.00011369,2]
[352103202,1738948257574,-500.0,0.00011369,2]
[352103203,1738948257583,-251.1483685,0.00011369,2]
[352103204,1738948257592,-4556.83,0.00011369,2]
[352103205,1738948257605,-1756.08,0.00011369,2]
[352103206,1738948257614,-500.0,0.00011369,2]
[352103207,1738948257623,-500.0,0.00011369,2]
[352103208,1738948257632,-506.6501405,0.00011369,2]
[352103209,1738948257641,-500.0,0.00011369,2]
[352103210,1738948257650,-544.57,0.00011369,2]
[352103211,1738948257659,-500.0,0.00011369,2]
[352103212,1738948257669,-2564.024003,0.00011369,2]
[352103213,1738948257679,-894.21,0.00011369,2]
[352103214,1738948257688,-500.0,0.00011369,2]
[352103215,1738948257698,-500.0,0.00011369,2]
[352103216,1738948257707,-500.0,0.00011369,2]
[352103217,1738948257716,-2564.024003,0.00011369,2]
[352103218,1738948257726,-683.69,0.00011369,2]
[352103219,1738948257735,-179.210502,0.00011369,2]
[352103220,1738948257744,-950.11,0.00011369,2]
[352103221,1738948257755,-6832.88,0.00011369,2]
[352103222,1738948257764,-500.0,0.00011369,2]
[352103223,1738948257774,-570.58044414,0.00011369,2]
[352103224,1738948257783,-615.52,0.00011369,2]
[352103225,1738948257793,-2042.52,0.00011369,2]
[352103226,1738948257802,-500.0,0.00011369,2]
[352103227,1738948257811,-1059.86,0.00011369,2]
[352103228,1738948257821,-500.0,0.00011369,2]
[352103229,1738948257831,-500.0,0.00011369,2]
[352103230,1738948257840,-2348.806485,0.00011369,2]
[352103231,1738948257854,-2880.24,0.00011369,2]
[352103232,1738948257869,-287.400291,0.00011369,2]
[352103233,1738948257879,-500.0,0.00011369,2]
[352103234,1738948258000,-500.0,0.00011369,2]
[352103235,1738948258012,-1555.12,0.00011369,2]
[352103236,1738948258022,-592.06,0.00011369,2]
[352103237,1738948258031,-2348.806485,0.00011369,2]
[352103238,1738948258041,-287.400291,0.00011369,2]
[352103239,1738948258050,-151.0,0.00011369,2]
[352103240,1738948258060,-151.0,0.00011369,2]
[352103241,1738948258069,-500.0,0.00011369,2]
[352103242,1738948258079,-500.0,0.00011369,2]
[352103243,1738948258088,-500.0,0.00011369,2]
[352103244,1738948258101,-500.0,0.00011369,2]
[352103245,1738948258111,-500.0,0.00011369,2]
[352103246,1738948258120,-44747.41,0.00011369,2]
[352103247,1738948258129,-500.0,0.00011369,2]
[352103248,1738948258139,-500.0,0.00011369,2]
[352103249,1738948258148,-689.05,0.00011369,2]
[352103250,1738948258158,-467.35,0.00011369,2]
[352103251,1738948258167,-500.0,0.00011369,2]
[352103252,1738948258177,-459.80232927,0.00011369,2]
[352103253,1738948258186,-2117.16,0.00011369,2]
[352103254,1738948258196,-550.12,0.00011369,2]
[352103255,1738948258206,-3536.62,0.00011369,2]
[352103256,1738948258215,-500.0,0.00011369,2]
[352103257,1738948258225,-371.561672,0.00011369,2]
[352103258,1738948258234,-5724.42,0.00011369,2]
[352103259,1738948258243,-500.0,0.00011369,2]
[352103260,1738948258253,-500.0,0.00011369,2]
[352103261,1738948258263,-500.0,0.00011369,2]
[352103262,1738948258272,-371.561672,0.00011369,2]
[352103263,1738948258282,-18714.84,0.00011369,2]
[352103264,1738948258291,-500.0,0.00011373,2]
[352103265,1738948258300,-150.11,0.00011373,2]
[352103266,1738948258310,-500.0,0.00011373,2]
[352103267,1738948258320,-150.11,0.00011373,2]
[352103268,1738948258330,-150.33712793,0.00011373,2]
[352103269,1738948258340,-500.0,0.00011373,2]
[352103270,1738948258350,-987.41370291,0.00011373,2]
[352103271,1738948258360,-150.11,0.00011373,2]
[352103272,1738948258370,-51.24526013,0.00011373,2]
[352103273,1738948258384,-729.75473987,0.00011373,2]
[352103274,1738948258393,-200.5227793,0.00011373,2]
[352103275,1738948258404,-501.0,0.00011373,2]
[352103276,1738948258414,-150.11,0.00011373,2]
[352103277,1738948258423,-500.0,0.00011373,2]
[352103278,1738948258433,-204.44959178,0.00011373,2]
[352103279,1738948258442,-1779.34165789,0.00011415,2]
[352103280,1738948258452,-151.0,0.00011506,2]
[352103281,1738948258462,-151.0,0.00011506,2]
[352103282,1738948258471,-151.0,0.00011506,2]
[352103283,1738948258481,-151.0,0.00011506,2]
[352103284,1738948258490,-151.0,0.00011506,2]
[352103285,1738948258500,-151.0,0.00011506,2]
[352103286,1738948258509,-151.0,0.00011506,2]
[352103287,1738948258519,-151.0,0.00011506,2]
[352103288,1738948258529,-151.0,0.00011506,2]
[352103289,1738948258538,-500.0,0.00011506,2]
[352103290,1738948258548,-500.0,0.00011506,2]
[352103291,1738948258557,-500.0,0.00011506,2]
[352103292,1738948258567,-500.0,0.00011506,2]
[352103293,1738948258576,-506.22,0.00011506,2]
[352103294,1738948258586,-456.747333,0.00011506,2]
[352103295,1738948258596,-456.747333,0.00011506,2]
[352103296,1738948258607,-500.0,0.00011506,2]
[352103297,1738948258616,-205.166828,0.00011506,2]
[352103298,1738948258626,-205.166828,0.00011506,2]
[352103299,1738948258636,-500.0,0.00011506,2]
[352103300,1738948258645,-500.0,0.00011506,2]
[352103301,1738948258655,-589.82024037,0.00011506,2]
[352103302,1738948258664,-502.98,0.00011506,2]
[352103303,1738948258674,-151.0,0.00011506,2]
[352103304,1738948258683,-500.0,0.00011506,2]
[352103305,1738948258693,-466.96,0.00011506,2]
[352103306,1738948258703,-408.874108,0.00011506,2]
[352103307,1738948258712,-408.874108,0.00011506,2]
[352103308,1738948258722,-500.0,0.00011506,2]
[352103309,1738948258731,-408.874108,0.00011506,2]
[352103310,1738948258740,-41.71967303,0.00011506,2]
[352103312,1738949299538,509587.41104334,0.00019,120]
[352103402,1738949432627,-407.71121854,9.749e-05,2]
[352103403,1738949432639,-300.0,9.911e-05,2]
[352103404,1738949432649,-3203.82275004,9.912e-05,2]
[352103405,1738949432662,-16567.01,9.912e-05,2]
[352103475,1738949438294,-831.40692078,9.912e-05,2]
[352103477,1738949438306,-1261.97440429,9.912e-05,2]
[352103479,1738949438318,-3035.78592489,9.912e-05,2]
[352103481,1738949438328,-1000.0,0.0001,4]
[352103483,1738949438339,-198.30286319,0.00010858,2]
[352103485,1738949438350,-30.41406705,0.00010858,2]
[352103488,1738949438361,-438.09920048,0.00010858,2]
[352103490,1738949438371,-198.30286316,0.00010869,2]
[352103492,1738949438381,-198.30286316,0.00010879,2]
[352103494,1738949438391,-198.30286316,0.0001089,2]
[352103496,1738949438402,-198.30286316,0.000109,2]
[352103498,1738949438411,-420.0,0.00010902,2]
[352103500,1738949438421,-151.184,0.0001093,2]
[352103502,1738949438430,-500.0,0.00010957,2]
[352103504,1738949438439,-202.33875312,0.00010957,2]
[352103506,1738949438449,-31.91052366,0.00010958,2]
[352103511,1738949438490,-468.08947634,0.00010958,2]
[352103513,1738949438500,-562.0092157,0.00010958,2]
[352103516,1738949438509,-500.0,0.00010958,2]
[352103519,1738949438519,-500.0,0.00010958,2]
[352103522,1738949438528,-500.0,0.00010958,2]
[352103524,1738949438537,-500.0,0.00010958,2]
[352103526,1738949438547,-500.0,0.00010958,2]
[352103528,1738949438556,-500.0,0.00010958,2]
[352103530,1738949438566,-513.96777686,0.00010958,2]
[352103532,1738949438576,-500.0,0.00010958,2]
[352103534,1738949438585,-500.0,0.00010958,2]
[352103536,1738949438594,-500.0,0.00010958,2]
[352103538,1738949438604,-500.0,0.00010958,2]
[352103540,1738949438613,-502.58133081,0.00010958,2]
[352103542,1738949438622,-500.0,0.00010958,2]
[352103544,1738949438632,-500.0,0.00010958,2]
[352103546,1738949438641,-500.0,0.00010958,2]
[352103548,1738949438651,-596.05670382,0.00010958,2]
[352103550,1738949438660,-500.0,0.00010958,2]
[352103552,1738949438670,-500.0,0.00010958,2]
[352103554,1738949438679,-500.0,0.00010958,2]
[352103556,1738949438688,-500.0,0.00010958,2]
[352103558,1738949438698,-500.0,0.00010958,2]
[352103560,1738949438711,-500.0,0.00010958,2]
[352103562,1738949438720,-500.0,0.00010958,2]
[352103564,1738949438729,-500.0,0.00010958,2]
[352103566,1738949438739,-500.0,0.00010958,2]
[352103568,1738949438748,-500.0,0.00010958,2]
[352103570,1738949438758,-500.0,0.00010958,2]
[352103572,1738949438767,-500.0,0.00010958,2]
[352103574,1738949438776,-500.0,0.00010958,2]
[352103576,1738949438785,-511.40182723,0.00010958,2]
[352103578,1738949438794,-528.105748,0.00010958,2]
[352103580,1738949438803,-500.0,0.00010958,2]
[352103582,1738949438812,-500.0,0.00010958,2]
[352103584,1738949438822,-478.75719505,0.00010958,2]
[352103586,1738949438831,-500.0,0.00010958,2]
[352103588,1738949438840,-500.0,0.00010958,2]
[352103590,1738949438849,-500.0,0.00010958,2]
[352103592,1738949438858,-500.0,0.00010958,2]
[352103594,1738949438867,-500.0,0.00010958,2]
[352103596,1738949438877,-500.0,0.00010958,2]
[352103598,1738949438886,-500.0,0.00010958,2]
[352103600,1738949438896,-500.0,0.00010958,2]
[352103602,1738949438906,-500.0,0.00010958,2]
[352103604,1738949438915,-500.0,0.00010958,2]
[352103606,1738949438924,-500.0,0.00010958,2]
[352103608,1738949438934,-514.15351747,0.00010958,2]
[352103610,1738949438943,-500.39378682,0.00010958,2]
[352103612,1738949438953,-500.0,0.00010958,2]
[352103614,1738949438963,-500.0,0.00010958,2]
[352103616,1738949438972,-500.0,0.00010958,2]
[352103618,1738949438981,-500.0,0.00010958,2]
[352103620,1738949438990,-500.0,0.00010958,2]
[352103622,1738949438999,-500.0,0.00010958,2]
[352103624,1738949439009,-500.0,0.00010958,2]
[352103626,1738949439018,-500.0,0.00010958,2]
[352103628,1738949439028,-500.0,0.00010958,2]
[352103630,1738949439037,-500.0,0.00010958,2]
[352103632,1738949439047,-391.66472834,0.00010958,2]
[352103634,1738949439057,-500.0,0.00010958,2]
[352103636,1738949439067,-500.0,0.00010958,2]
[352103638,1738949439076,-502.50025769,0.00010958,2]
[352103640,1738949439086,-500.0,0.00010958,2]
[352103642,1738949439095,-500.0,0.00010958,2]
[352103644,1738949439106,-500.0,0.00010958,2]
[352103646,1738949439116,-500.0,0.00010958,2]
[352103648,1738949439125,-219.63500113,0.00010958,2]
[352103650,1738949439135,-500.0,0.00010958,2]
[352103652,1738949439144,-500.0,0.00010958,2]
[352103653,1738949439154,-500.0,0.00010958,2]
[352103654,1738949439164,-500.0,0.00010958,2]
[352103655,1738949439173,-500.0,0.00010958,2]
[352103656,1738949439183,-500.0,0.00010958,2]
[352103657,1738949439192,-500.0,0.00010958,2]
[352103658,1738949439201,-500.0,0.00010958,2]
[352103659,1738949439217,-500.0,0.00010958,2]
[352103660,1738949439227,-500.0,0.00010958,2]
[352103661,1738949439237,-500.0,0.00010958,2]
[352103662,1738949439252,-500.0,0.00010958,2]
[352103663,1738949439263,-520.02946328,0.00010958,2]
[352103664,1738949439273,-500.0,0.00010958,2]
[352103665,1738949439283,-500.0,0.00010958,2]
[352103666,1738949439294,-500.0,0.00010958,2]
[352103669,1738949439303,-500.0,0.00010958,2]
[352103671,1738949439315,-500.0,0.00010958,2]
[352103673,1738949439325,-505.819076,0.00010958,2]
[352103676,1738949439334,-500.0,0.00010958,2]
[352103678,1738949439344,-502.01378941,0.00010958,2]
[352103680,1738949439353,-505.03528444,0.00010958,2]
[352103682,1738949439362,-505.21765383,0.00010958,2]
[352103684,1738949439371,-500.0,0.00010958,2]
[352103686,1738949439380,-500.0,0.00010958,2]
[352103688,1738949439390,-500.0,0.00010958,2]
[352103690,1738949439399,-500.0,0.00010958,2]
[352103692,1738949439409,-500.0,0.00010958,2]
[352103694,1738949439420,-509.00370615,0.00010958,2]
[352103696,1738949439429,-500.0,0.00010958,2]
[352103698,1738949439439,-500.0,0.00010958,2]
[352103700,1738949439448,-500.0,0.00010958,2]
[352103702,1738949439460,-500.0,0.00010958,2]
[352103704,1738949439469,-747.0,0.00010958,2]
[352103707,1738949439479,-501.04664382,0.00010958,2]
[352103710,1738949439488,-500.0,0.00010958,2]
[352103713,1738949439498,-500.0,0.00010958,2]
[352103715,1738949439507,-500.0,0.00010958,2]
[352103717,1738949439516,-500.0,0.00010958,2]
[352103719,1738949439525,-500.0,0.00010958,2]
[352103721,1738949439534,-660.34,0.00010958,2]
[352103723,1738949439544,-500.0,0.00010958,2]
[352103725,1738949439553,-500.0,0.00010958,2]
[352103727,1738949439562,-500.0,0.00010958,2]
[352103729,1738949439571,-500.0,0.00010958,2]
[352103731,1738949439581,-500.0,0.00010958,2]
[352103733,1738949439590,-500.0,0.00010958,2]
[352103735,1738949439599,-500.0,0.00010958,2]
[352103737,1738949439608,-500.0,0.00010958,2]
[352103739,1738949439617,-500.0,0.00010958,2]
[352103741,1738949439627,-500.0,0.00010958,2]
[352103743,1738949439636,-500.0,0.00010958,2]
[352103745,1738949439645,-500.0,0.00010958,2]
[352103747,1738949439654,-500.0,0.00010958,2]
[352103749,1738949439664,-788.97,0.00010958,2]
[352103751,1738949439673,-500.0,0.00010958,2]
[352103753,1738949439682,-500.0,0.00010958,2]
[352103755,1738949439691,-500.0,0.00010958,2]
[352103757,1738949439701,-169.02,0.00010958,2]
[352103759,1738949439712,-500.0,0.00010958,2]
[352103761,1738949439721,-500.0,0.00010958,2]
[352103763,1738949439730,-500.0,0.00010958,2]
[352103765,1738949439739,-500.0,0.00010958,2]
[352103767,1738949439749,-500.0,0.00010958,2]
[352103769,1738949439758,-500.0,0.00010958,2]
[352103771,1738949439767,-500.0,0.00010958,2]
[352103773,1738949439777,-500.0,0.00010958,2]
[352103775,1738949439786,-179.86653735,0.00010958,2]
[352103777,1738949439796,-500.0,0.00010958,2]
[352103779,1738949439805,-500.0,0.00010958,2]
[352103781,1738949439814,-510.46336238,0.00010958,2]
[352103783,1738949439824,-500.0,0.00010958,2]
[352103785,1738949439833,-500.0,0.00010958,2]
[352103787,1738949439842,-500.0,0.00010958,2]
[352103789,1738949439851,-500.0,0.00010958,2]
[352103791,1738949439860,-500.0,0.00010958,2]
[352103793,1738949439869,-500.71530683,0.00010958,2]
[352103795,1738949439878,-500.0,0.00010958,2]
[352103797,1738949439887,-500.0,0.00010958,2]
[352103799,1738949439897,-500.0,0.00010958,2]
[352103801,1738949439906,-500.0,0.00010958,2]
[352103803,1738949439916,-500.0,0.00010958,2]
[352103805,1738949439925,-500.0,0.00010958,2]
[352103824,1738949440086,-500.0,0.00010958,2]
[352103826,1738949440096,-619.32909589,0.00010958,2]
[352103828,1738949440105,-474.73107151,0.00010958,2]
[352103830,1738949440115,-500.0,0.00010958,2]
[352103832,1738949440124,-500.0,0.00010958,2]
[352103834,1738949440133,-500.0,0.00010958,2]
[352103836,1738949440142,-500.0,0.00010958,2]
[352103838,1738949440151,-500.0,0.00010958,2]
[352103840,1738949440161,-331.80080659,0.00010958,2]
[352103842,1738949440171,-500.0,0.00010958,2]
[352103844,1738949440180,-500.0,0.00010958,2]
[352103846,1738949440189,-500.0,0.00010958,2]
[352103848,1738949440199,-500.0,0.00010958,2]
[352103850,1738949440210,-500.0,0.00010958,2]
[352103852,1738949440220,-434.68995905,0.00010958,2]
[352103854,1738949440229,-500.0,0.00010958,2]
[352103856,1738949440239,-581.22846419,0.00010958,2]
[352103858,1738949440252,-500.0,0.00010958,2]
[352103860,1738949440261,-500.0,0.00010958,2]
[352103862,1738949440270,-470.11444411,0.00010958,2]
[352103864,1738949440279,-500.0,0.00010958,2]
[352103866,1738949440290,-500.0,0.00010958,2]
[352103869,1738949440299,-500.0,0.00010958,2]
[352103870,1738949440308,-500.0,0.00010958,2]
[352103872,1738949440317,-500.0,0.00010958,2]
[352103874,1738949440326,-500.0,0.00010958,2]
[352103876,1738949440340,-500.0,0.00010958,2]
[352103878,1738949440350,-500.0,0.00010958,2]
[352103881,1738949440359,-500.0,0.00010958,2]
[352103883,1738949440368,-500.0,0.00010958,2]
[352103885,1738949440377,-500.0,0.00010958,2]
[352103887,1738949440387,-500.0,0.00010958,2]
[352103888,1738949440397,-500.0,0.00010958,2]
[352103890,1738949440407,-901.78,0.00010958,2]
[352103893,1738949440416,-500.0,0.00010958,2]
[352103895,1738949440426,-500.0,0.00010958,2]
[352103897,1738949440435,-221.69,0.00010958,2]
[352103900,1738949440445,-500.0,0.00010958,2]
[352103903,1738949440455,-500.0,0.00010958,2]
[352103906,1738949440464,-500.0,0.00010958,2]
[352103909,1738949440473,-1223.32,0.00010958,2]
[352103910,1738949440482,-500.0,0.00010958,2]
[352103912,1738949440492,-503.85255314,0.00010958,2]
[352103914,1738949440501,-1498.95,0.00010958,2]
[352103917,1738949440511,-199.99291984,0.00010958,2]
[352103918,1738949440520,-500.0,0.00010958,2]
[352103920,1738949440530,-500.0,0.00010958,2]
[352103922,1738949440539,-500.0,0.00010958,2]
[352103925,1738949440549,-500.0,0.00010958,2]
[352103927,1738949440558,-500.0,0.00010958,2]
[352103929,1738949440567,-500.0,0.00010958,2]
[352103931,1738949440576,-500.0,0.00010958,2]
[352103933,1738949440586,-500.0,0.00010958,2]
[352103934,1738949440595,-500.0,0.00010958,2]
[352103936,1738949440604,-500.0,0.00010958,2]
[352103939,1738949440613,-490.47,0.00010958,2]
[352103941,1738949440623,-500.0,0.00010958,2]
[352103943,1738949440632,-766.69,0.00010958,2]
[352103945,1738949440642,-500.0,0.00010958,2]
[352103947,1738949440651,-500.0,0.00010958,2]
[352103948,1738949440660,-326.89083876,0.00010958,2]
[352103950,1738949440669,-500.0,0.00010958,2]
[352103952,1738949440678,-500.0,0.00010958,2]
[352103954,1738949440687,-500.0,0.00010958,2]
[352103956,1738949440697,-302.30541978,0.00010958,2]
[352103958,1738949440707,-500.0,0.00010958,2]
[352103960,1738949440716,-627.28,0.00010958,2]
[352103962,1738949440725,-500.0,0.00010958,2]
[352103964,1738949440734,-500.0,0.00010958,2]
[352103966,1738949440743,-500.0,0.00010958,2]
[352103968,1738949440753,-500.0,0.00010958,2]
[352103971,1738949440763,-500.0,0.00010958,2]
[352103973,1738949440772,-500.0,0.00010958,2]
[352103975,1738949440781,-500.0,0.00010958,2]
[352103977,1738949440791,-539.74,0.00010958,2]
[352103979,1738949440800,-500.0,0.00010958,2]
[352103981,1738949440810,-500.0,0.00010958,2]
[352103983,1738949440819,-500.0,0.00010958,2]
[352103985,1738949440830,-643.97,0.00010958,2]
[352103987,1738949440839,-500.0,0.00010958,2]
[352103989,1738949440849,-500.0,0.00010958,2]
[352103991,1738949440858,-500.0,0.00010958,2]
[352103993,1738949440867,-317.61058948,0.00010958,2]
[352103995,1738949440876,-1434.51,0.00010958,2]
[352103997,1738949440885,-385.87795808,0.00010958,2]
[352103999,1738949440895,-500.0,0.00010958,2]
[352104001,1738949440904,-500.0,0.00010958,2]
[352104003,1738949440913,-500.0,0.00010958,2]
[352104005,1738949440922,-500.0,0.00010958,2]
[352104007,1738949440931,-500.0,0.00010958,2]
[352104009,1738949440940,-449.64892661,0.00010958,2]
[352104011,1738949440949,-500.0,0.00010958,2]
[352104013,1738949440960,-500.0,0.00010958,2]
[352104015,1738949440969,-898.49,0.00010958,2]
[352104017,1738949440978,-500.0,0.00010958,2]
[352104019,1738949440987,-500.0,0.00010958,2]
[352104021,1738949440996,-500.0,0.00010958,2]
[352104023,1738949441005,-500.0,0.00010958,2]
[352104025,1738949441014,-500.0,0.00010958,2]
[352104027,1738949441023,-500.0,0.00010958,2]
[352104029,1738949441032,-500.0,0.00010958,2]
[352104031,1738949441041,-500.0,0.00010958,2]
[352104033,1738949441049,-500.0,0.00010958,2]
[352104035,1738949441058,-500.0,0.00010958,2]
[352104037,1738949441068,-600.36317873,0.00010958,2]
[352104039,1738949441076,-500.0,0.00010958,2]
[352104041,1738949441085,-500.0,0.00010958,2]
[352104042,1738949441094,-500.0,0.00010958,2]
[352104045,1738949441104,-500.0,0.00010958,2]
[352104047,1738949441113,-500.0,0.00010958,2]
[352104049,1738949441122,-1068.79,0.00010958,2]
[352104051,1738949441132,-500.0,0.00010958,2]
[352104053,1738949441141,-500.0,0.00010958,2]
[352104055,1738949441150,-500.0,0.00010958,2]
[352104056,1738949441159,-447.54132228,0.00010958,2]
[352104059,1738949441168,-500.0,0.00010958,2]
[352104060,1738949441177,-500.0,0.00010958,2]
[352104062,1738949441187,-500.0,0.00010958,2]
[352104064,1738949441196,-934.63,0.00010958,2]
[352104066,1738949441207,-500.0,0.00010958,2]
[352104069,1738949441216,-500.0,0.00010958,2]
[352104071,1738949441226,-500.0,0.00010958,2]
[352104072,1738949441235,-500.0,0.00010958,2]
[352104074,1738949441245,-1000.0,0.00010958,2]
[352104076,1738949441256,-726.64,0.00010958,2]
[352104078,1738949441265,-500.0,0.00010958,2]
[352104080,1738949441274,-500.0,0.00010958,2]
[352104082,1738949441283,-500.0,0.00010958,2]
[352104084,1738949441293,-504.62371485,0.00010958,2]
[352104086,1738949441302,-500.0,0.00010958,2]
[352104088,1738949441312,-634.96,0.00010958,2]
[352104090,1738949441321,-500.0,0.00010958,2]
[352104092,1738949441333,-500.0,0.00010958,2]
[352104095,1738949441342,-500.0,0.00010958,2]
[352104097,1738949441351,-500.0,0.00010958,2]
[352104099,1738949441361,-500.0,0.00010958,2]
[352104100,1738949441370,-500.0,0.00010958,2]
[352104103,1738949441380,-500.0,0.00010958,2]
[352104105,1738949441389,-500.0,0.00010958,2]
[352104107,1738949441399,-500.0,0.00010958,2]
[352104109,1738949441409,-500.0,0.00010958,2]
[352104111,1738949441418,-500.0,0.00010958,2]
[352104113,1738949441429,-500.0,0.00010958,2]
[352104115,1738949441439,-500.0,0.00010958,2]
[352104117,1738949441449,-280.99101283,0.00010958,2]
[352104119,1738949441463,-500.0,0.00010958,2]
[352104121,1738949441471,-500.0,0.00010958,2]
[352104123,1738949441481,-500.0,0.00010958,2]
[352104125,1738949441490,-500.0,0.00010958,2]
[352104127,1738949441500,-500.0,0.00010958,2]
[352104129,1738949441509,-500.0,0.00010958,2]
[352104131,1738949441519,-587.86,0.00010958,2]
[352104133,1738949441528,-500.0,0.00010958,2]
[352104135,1738949441538,-500.0,0.00010958,2]
[352104137,1738949441548,-500.0,0.00010958,2]
[352104139,1738949441558,-500.0,0.00010958,2]
[352104141,1738949441568,-500.0,0.00010958,2]
[352104142,1738949441577,-500.0,0.00010958,2]
[352104145,1738949441587,-1231.23,0.00010958,2]
[352104147,1738949441598,-414.72450368,0.00010958,2]
[352104149,1738949441608,-500.0,0.00010958,2]
[352104151,1738949441619,-500.0,0.00010958,2]
[352104153,1738949441629,-500.0,0.00010958,2]
[352104155,1738949441639,-500.0,0.00010958,2]
[352104157,1738949441649,-859.46,0.00010958,2]
[352104159,1738949441659,-500.0,0.00010958,2]
[352104160,1738949441668,-500.0,0.00010958,2]
[352104162,1738949441677,-518.22962073,0.00010958,2]
[352104165,1738949441687,-853.6,0.00010958,2]
[352104167,1738949441697,-500.0,0.00010958,2]
[352104169,1738949441713,-856.56,0.00010958,2]
[352104171,1738949441723,-500.0,0.00010958,2]
[352104172,1738949441732,-500.0,0.00010958,2]
[352104175,1738949441743,-500.0,0.00010958,2]
[352104176,1738949441751,-500.0,0.00010958,2]
[352104178,1738949441761,-500.0,0.00010958,2]
[352104180,1738949441770,-13918.92,0.00010958,2]